lending/lending_fUSD_20260102
["ID","MTS","AMOUNT","RATE_DAILY","PERIOD"]
[400341217,1767394241099,-865.13590181,0.00036661,4]
[400341220,1767394241111,-5288.5435198,0.00036661,4]
[400341222,1767394241122,-6315.3454475,0.00036661,4]
[400341224,1767394241133,-324.30714647,0.00036661,4]
[400341226,1767394241144,-1467.19107634,0.00036661,4]
[400341228,1767394241153,-1022.1,0.00036661,2]
[400341230,1767394241162,-4105.0224,0.00036671,2]
[400341232,1767394241171,-47438.9267,0.00036671,2]
[400341234,1767394241180,-151.78744396,0.000367,25]
[400341236,1767394241189,-32012.8186469,0.00036759,4]
[400341238,1767394241198,-1022.1,0.00036759,2]
[400341240,1767394241207,-96038.4559406,0.00036769,4]
[400341242,1767394241216,-1022.1,0.00036769,2]
[400341244,1767394241226,-1250.0,0.00036771,2]
[400341246,1767394241235,-208083.321205,0.00036779,4]
[400341248,1767394241244,-151.4,0.00036779,2]
[400341250,1767394241253,-151.4,0.00036779,2]
[400341252,1767394241263,-151.4,0.00036779,2]
[400341254,1767394241272,-151.0,0.00036786,14]
[400341256,1767394241281,-151.0,0.00036786,14]
[400341258,1767394241290,-1061.80560835,0.00036788,30]
[400341260,1767394241299,-1000000.0,0.00036789,2]
[400341262,1767394241308,-174.24,0.000368,14]
[400341264,1767394241319,-5000.0,0.00036889,2]
[400341266,1767394241328,-5000.0,0.00036892,2]
[400341268,1767394241338,-2500.0,0.00036939,2]
[400341270,1767394241351,-5000.0,0.00036965,2]
[400341272,1767394241360,-6020.86208302,0.00037305,2]
[400341274,1767394241369,-6020.86208302,0.00038009,2]
[400341276,1767394241379,-150.0,0.00038466,7]
[400341278,1767394241389,-150.0,0.00038466,7]
[400341280,1767394241399,-150.00000001,0.00038466,7]
[400341282,1767394241409,-150.0,0.00038466,7]
[400341284,1767394241421,-150.0,0.00038466,7]
[400341286,1767394241431,-150.0,0.00038466,7]
[400341288,1767394241441,-150.0,0.00038466,7]
[400341290,1767394241450,-150.44068196,0.00038466,7]
[400341292,1767394241459,-150.0,0.00038466,7]
[400341294,1767394241468,-151.85727786,0.00038466,7]
[400341296,1767394241477,-159.79234636,0.00038466,7]
[400341298,1767394241487,-4693.40183751,0.00038487,2]
[400341300,1767394241496,-6020.86208302,0.00038714,2]
[400341302,1767394241505,-300.0,0.00038734,2]
[400341304,1767394241515,-300.0,0.00038734,2]
[400341306,1767394241523,-303.85501722,0.00038734,2]
[400341308,1767394241532,-300.0,0.00038734,2]
[400341310,1767394241542,-300.0,0.00038734,2]
[400341312,1767394241552,-595.88867019,0.00038734,2]
[400341314,1767394241561,-364.48459935,0.00038734,2]
[400341315,1767394241571,-300.0,0.00038734,2]
[400341316,1767394241580,-300.0,0.00038734,2]
[400341317,1767394241590,-300.0,0.00038734,2]
[400341318,1767394241599,-300.0,0.00038734,2]
[400341319,1767394241609,-300.0,0.00038734,2]
[400341320,1767394241619,-300.0,0.00038734,2]
[400341321,1767394241629,-303.47175408,0.00038734,2]
[400341322,1767394241638,-300.0,0.00038734,2]
[400341323,1767394241648,-578.04560059,0.00038734,2]
[400341324,1767394241657,-300.0,0.00038734,2]
[400341325,1767394241667,-300.0,0.00038734,2]
[400341326,1767394241676,-300.0,0.00038734,2]
[400341327,1767394241685,-300.0,0.00038734,2]
[400341328,1767394241695,-300.0,0.00038734,2]
[400341329,1767394241705,-300.0,0.00038734,2]
[400341330,1767394241715,-615.94778257,0.00038734,2]
[400341331,1767394241724,-304.64549813,0.00038734,2]
[400341332,1767394241733,-300.0,0.00038734,2]
[400341333,1767394241743,-300.0,0.00038734,2]
[400341334,1767394241752,-300.0,0.00038734,2]
[400341335,1767394241761,-300.0,0.00038734,2]
[400341336,1767394241771,-300.0,0.00038734,2]
[400341337,1767394241780,-303.85501722,0.00038734,2]
[400341338,1767394241789,-300.0,0.00038734,2]
[400341339,1767394241799,-300.0,0.00038734,2]
[400341340,1767394241808,-595.88867019,0.00038734,2]
[400341341,1767394241817,-364.48459935,0.00038734,2]
[400341342,1767394241826,-300.0,0.00038734,2]
[400341343,1767394241836,-300.0,0.00038734,2]
[400341344,1767394241845,-300.0,0.00038734,2]
[400341345,1767394241855,-300.0,0.00038734,2]
[400341346,1767394241864,-300.0,0.00038734,2]
[400341347,1767394241874,-300.0,0.00038734,2]
[400341348,1767394241883,-303.47175408,0.00038734,2]
[400341349,1767394241893,-300.0,0.00038734,2]
[400341350,1767394241902,-578.04560059,0.00038734,2]
[400341351,1767394241911,-300.0,0.00038734,2]
[400341352,1767394241921,-300.0,0.00038734,2]
[400341353,1767394241929,-300.0,0.00038734,2]
[400341354,1767394241937,-300.0,0.00038734,2]
[400341355,1767394241947,-300.0,0.00038734,2]
[400341356,1767394241956,-300.0,0.00038734,2]
[400341357,1767394241967,-615.94778257,0.00038734,2]
[400341358,1767394241975,-304.64549813,0.00038734,2]
[400341359,1767394241985,-300.0,0.00038734,2]
[400341360,1767394241996,-300.0,0.00038734,2]
[400341361,1767394242005,-300.0,0.00038734,2]
[400341362,1767394242014,-834.03411566,0.00038772,2]
[400341363,1767394242023,-154.38,0.00038895,14]
[400341364,1767394242034,-500.0,0.00039112,2]
[400341365,1767394242043,-903.0,0.00039214,2]
[400341366,1767394242051,-5530.0,0.000394,5]
[400341367,1767394242061,-6020.86208302,0.00039418,2]
[400341368,1767394242072,-2000.0,0.000396,2]
[400341369,1767394242082,-500.0,0.00039616,30]
[400341370,1767394242091,-502.0,0.00039616,30]
[400341371,1767394242100,-150.0,0.00039616,120]
[400341372,1767394242109,-150.0,0.00039616,30]
[400341373,1767394242118,-150.0,0.00039616,30]
[400341374,1767394242127,-150.0,0.00039616,30]
[400341375,1767394242136,-500.0,0.00039616,30]
[400341376,1767394242145,-500.0,0.00039616,30]
[400341377,1767394242156,-500.0,0.00039616,30]
[400341378,1767394242165,-500.0,0.00039616,30]
[400341379,1767394242175,-500.0,0.00039616,30]
[400341380,1767394242186,-500.0,0.00039616,30]
[400341381,1767394242197,-500.0,0.00039616,30]
[400341382,1767394242207,-500.0,0.00039616,30]
[400341383,1767394242218,-500.0,0.00039616,30]
[400341384,1767394242227,-500.0,0.00039616,30]
[400341385,1767394242237,-500.0,0.00039616,30]
[400341386,1767394242254,-254.49344309,0.00039616,30]
[400341387,1767394242264,-500.0,0.00039616,2]
[400341388,1767394242275,-500.0,0.00039616,30]
[400341389,1767394242284,-199.32717415,0.00039616,30]
[400341390,1767394242294,-500.0,0.00039616,30]
[400341391,1767394242305,-500.0,0.00039616,30]
[400341392,1767394242314,-500.0,0.00039616,30]
[400341393,1767394242324,-150.0,0.00039616,2]
[400341394,1767394242333,-200.0,0.00039709,2]
[400341395,1767394242342,-207.4,0.00039709,2]
[400341396,1767394242355,-215.0738,0.00039709,2]
[400341397,1767394242364,-223.0315306,0.00039709,2]
[400341398,1767394242375,-231.28369723,0.00039709,2]
[400341399,1767394242383,-239.84119403,0.00039709,2]
[400341400,1767394242394,-248.71531821,0.00039709,2]
[400341401,1767394242402,-257.91778498,0.00039709,2]
[400341402,1767394242411,-267.46074303,0.00039709,2]
[400341403,1767394242424,-277.35679052,0.00039709,2]
[400341404,1767394242434,-500.0,0.00039753,30]
[400341405,1767394242443,-502.0,0.00039753,30]
[400341406,1767394242453,-150.0,0.00039753,120]
[400341407,1767394242461,-150.0,0.00039753,30]
[400341408,1767394242470,-500.0,0.00039753,30]
[400341409,1767394242479,-500.0,0.00039753,2]
[400341410,1767394242488,-500.0,0.00039753,30]
[400341411,1767394242497,-500.0,0.00039753,30]
[400341412,1767394242506,-500.0,0.00039753,30]
[400341413,1767394242515,-500.0,0.00039753,30]
[400341414,1767394242524,-500.0,0.0003989,30]
[400341415,1767394242533,-502.0,0.0003989,30]
[400341416,1767394242543,-168.71118852,0.0003989,120]
[400341417,1767394242552,-200.0,0.0003989,30]
[400341418,1767394242561,-215.65062607,0.0003989,30]
[400341419,1767394242571,-500.0,0.0003989,2]
[400341420,1767394242579,-500.0,0.0003989,30]
[400341421,1767394242588,-500.0,0.0003989,30]
[400341422,1767394242598,-500.0,0.0003989,30]
[400341423,1767394242606,-500.0,0.0003989,30]
[400341424,1767394242615,-150.0,0.0003989,7]
[400341425,1767394242626,-150.0,0.0003989,7]
[400341426,1767394242636,-370.52782192,0.00039933,14]
[400341427,1767394242645,-1000.0,0.00039945,7]
[400341428,1767394242655,-902.0,0.00040006,2]
[400341429,1767394242664,-500.0,0.00040027,30]
[400341430,1767394242673,-502.0,0.00040027,30]
[400341431,1767394242683,-500.0,0.00040027,2]
[400341432,1767394242692,-445.1656086,0.00040027,30]
[400341433,1767394242702,-500.0,0.00040027,30]
[400341434,1767394242711,-500.0,0.00040027,30]
[400341435,1767394242722,-308.3819682,0.00040027,30]
[400341436,1767394242731,-151.4,0.00040031,2]
[400341437,1767394242740,-508.0,0.00040041,10]
[400341438,1767394242750,-1000.0,0.00040043,7]
[400341439,1767394242759,-1000.0,0.00040052,7]
[400341440,1767394242768,-6020.86208302,0.00040123,15]
[400341441,1767394242778,-162.32975745,0.00040164,30]
[400341442,1767394242787,-502.0,0.00040164,30]
[400341443,1767394242796,-500.0,0.00040164,2]
[400341444,1767394242806,-500.0,0.00040164,30]
[400341445,1767394242814,-500.0,0.00040164,30]
[400341446,1767394242824,-1000.0,0.00040168,7]
[400341447,1767394242833,-902.0,0.00040249,2]
[400341448,1767394242842,-1000.0,0.00040288,7]
[400341449,1767394242851,-502.0,0.00040301,30]
[400341450,1767394242861,-500.0,0.00040301,2]
[400341451,1767394242871,-500.0,0.00040301,30]
[400341452,1767394242879,-500.0,0.00040301,30]
[400341453,1767394242888,-168.0,0.00040331,2]
[400341454,1767394242898,-902.0,0.0004036,2]
[400341455,1767394242907,-1000.0,0.00040416,7]
[400341456,1767394242916,-200.0,0.00040432,2]
[400341457,1767394242925,-502.0,0.00040438,30]
[400341458,1767394242934,-500.0,0.00040438,2]
[400341459,1767394242943,-585.10310192,0.00040438,30]
[400341460,1767394242952,-500.0,0.00040438,30]
[400341461,1767394242961,-168.0,0.00040521,2]
[400341462,1767394242970,-502.0,0.00040575,30]
[400341463,1767394242979,-500.0,0.00040575,2]
[400341464,1767394242987,-500.0,0.00040575,30]
[400341465,1767394242996,-150.0,0.00040603,7]
[400341466,1767394243004,-903.0,0.00040632,7]
[400341467,1767394243013,-1000.0,0.00040684,7]
[400341468,1767394243021,-168.0,0.00040698,2]
[400341469,1767394243031,-502.0,0.00040712,30]
[400341470,1767394243040,-500.0,0.00040712,2]
[400341471,1767394243048,-500.0,0.00040712,30]
[400341472,1767394243057,-4693.40183751,0.00040714,15]
[400341473,1767394243065,-902.0,0.00040731,2]
[400341474,1767394243074,-174.24,0.000408,14]
[400341475,1767394243083,-6020.86208302,0.00040827,15]
[400341476,1767394243092,-871.8,0.00040828,6]
[400341477,1767394243101,-502.0,0.00040849,30]
[400341478,1767394243110,-293.27926274,0.00040849,2]
[400341479,1767394243119,-500.0,0.00040849,30]
[400341480,1767394243128,-154.38,0.00040897,14]
[400341481,1767394243137,-902.0,0.00040908,2]
[400341482,1767394243146,-168.0,0.00040937,2]
[400341483,1767394243155,-502.0,0.00040986,30]
[400341484,1767394243164,-500.0,0.00040986,30]
[400341485,1767394243173,-1880.76004357,0.0004101,120]
[400341486,1767394243182,-1000.0,0.00041023,7]
[400341488,1767394243191,-287.61899177,0.00041078,2]
[400341490,1767394243199,-999.0,0.00041095,120]
[400341492,1767394243208,-304.37117485,0.00041096,2]
[400341493,1767394243217,-481.92906374,0.00041096,80]
[400341494,1767394243226,-168.0,0.00041099,2]
[400341495,1767394243235,-508.0,0.00041121,10]
[400341496,1767394243244,-502.0,0.00041123,30]
[400341497,1767394243253,-500.0,0.00041123,30]
[400341498,1767394243262,-1352.2,0.00041183,30]
[400341499,1767394243271,-903.0,0.00041233,2]
[400341500,1767394243280,-502.0,0.0004126,30]
[400341501,1767394243288,-500.0,0.0004126,30]
[400341502,1767394243297,-150.0,0.00041315,30]
[400341503,1767394243307,-150.0,0.00041315,30]
[400341504,1767394243326,-1000.0,0.00041329,14]
[400341505,1767394243338,-832.0,0.00041367,11]
[400341506,1767394243348,-502.0,0.00041397,30]
[400341507,1767394243359,-500.0,0.00041397,30]
[400341508,1767394243369,-500.0,0.00041397,60]
[400341509,1767394243378,-500.0,0.00041397,60]
[400341510,1767394243387,-800.0,0.00041397,60]
[400341511,1767394243398,-168.0,0.00041425,2]
[400341512,1767394243407,-168.0,0.0004146,2]
[400341513,1767394243416,-1204.12895474,0.00041491,9]
[400341514,1767394243426,-902.0,0.00041516,2]
[400341515,1767394243436,-6020.86208302,0.00041532,15]
[400341516,1767394243445,-1000.0,0.00041532,14]
[400341517,1767394243454,-502.0,0.00041534,30]
[400341518,1767394243463,-1352.2,0.00041538,30]
[400341519,1767394243472,-1556.0,0.00041545,2]
[400341520,1767394243481,-594.8574243,0.00041553,14]
[400341521,1767394243489,-1000.0,0.00041588,14]
[400341522,1767394243498,-502.0,0.00041671,30]
[400341523,1767394243507,-164.0,0.00041709,11]
[400341524,1767394243516,-1325.73319186,0.0004171,7]
[400341525,1767394243524,-168.0,0.00041768,2]
[400341526,1767394243533,-502.0,0.00041808,30]
[400341527,1767394243542,-168.0,0.00041866,2]
[400341528,1767394243551,-1352.2,0.00041893,30]
[400341529,1767394243560,-902.0,0.00041922,7]
[400341530,1767394243569,-502.0,0.00041945,30]
[400341531,1767394243578,-500.0,0.00041945,60]
[400341532,1767394243587,-800.0,0.00041945,60]
[400341533,1767394243596,-502.0,0.00042082,30]
[400341534,1767394243605,-6822.73,0.00042098,2]
[400341535,1767394243614,-999.0,0.00042191,120]
[400341536,1767394243623,-508.0,0.00042201,10]
[400341537,1767394243631,-502.0,0.00042219,30]
[400341538,1767394243641,-6020.86208302,0.00042236,15]
[400341539,1767394243650,-830.0,0.00042303,16]
[400341540,1767394243660,-831.0,0.00042328,16]
[400341541,1767394243670,-832.0,0.00042347,16]
[400341542,1767394243679,-902.0,0.00042351,120]
[400341543,1767394243689,-502.0,0.00042356,30]
[400341544,1767394243698,-903.0,0.00042395,120]
[400341545,1767394243707,-411.82203937,0.00042447,2]
[400341546,1767394243716,-1000.0,0.0004245,14]
[400341547,1767394243726,-502.0,0.00042493,30]
[400341548,1767394243735,-500.0,0.00042493,60]
[400341549,1767394243743,-800.0,0.00042493,60]
[400341550,1767394243753,-500.0,0.00042493,60]
[400341551,1767394243762,-168.0,0.00042521,2]
[400341552,1767394243772,-1963.68201,0.0004257,120]
[400341553,1767394243781,-1963.68201,0.0004257,120]
[400341554,1767394243791,-1963.68201,0.0004257,120]
[400341555,1767394243801,-1963.68201,0.0004257,120]
[400341556,1767394243810,-1963.68201,0.0004257,120]
[400341557,1767394243819,-168.0,0.00042572,2]
[400341558,1767394243828,-151.4,0.0004261,2]
[400341559,1767394243838,-202300.73988631,0.0004262,2]
[400341560,1767394243847,-502.0,0.0004263,30]
[400341561,1767394243856,-1000.0,0.00042635,14]
[400341562,1767394243865,-294.70525475,0.0004274,30]
[400341563,1767394243875,-174.46450506,0.0004274,30]
[400341564,1767394243884,-169.7017878,0.0004274,30]
[400341565,1767394243893,-511.15585513,0.00042767,30]
[400341566,1767394243903,-174.24,0.000428,14]
[400341567,1767394243912,-168.0,0.00042808,2]
[400341568,1767394243922,-2000.0,0.00042826,3]
[400341569,1767394243932,-2000.0,0.00042826,3]
[400341570,1767394243941,-1000.0,0.00042834,14]
[400341571,1767394243950,-399.83079592,0.00042835,2]
[400341572,1767394243959,-151.0,0.00042849,120]
[400341573,1767394243968,-43273.09713837,0.00042851,2]
[400341574,1767394243978,-1328.0,0.00042852,2]
[400341575,1767394243987,-1403.0,0.00042852,2]
[400341576,1767394243996,-3598.121,0.00042852,2]
[400341577,1767394244006,-613.0,0.00042852,2]
[400341578,1767394244015,-1265.0,0.00042852,2]
[400341579,1767394244024,-387.477,0.00042852,2]
[400341580,1767394244033,-250.0,0.00042852,2]
[400341581,1767394244042,-6544.0,0.00042852,2]
[400341582,1767394244052,-241.762092,0.0004287,15]
[400341583,1767394244061,-5896.0,0.000429,7]
[400341584,1767394244070,-2858.9006,0.00042933,2]
[400341585,1767394244079,-1000.0,0.00042933,2]
[400341586,1767394244088,-2933.8705,0.00042933,120]
[400341587,1767394244097,-834.03411566,0.00042933,9]
[400341588,1767394244106,-6020.86208302,0.00042941,15]
[400341590,1767394244115,-175.71265842,0.00042941,8]
[400341591,1767394244124,-6534.2662,0.00042941,2]
[400341593,1767394244134,-154.38,0.00042944,14]
[400341594,1767394244143,-300.0,0.00042967,30]
[400341595,1767394244152,-695.86626981,0.00042967,30]
[400341596,1767394244161,-300.0,0.00042971,30]
[400341597,1767394244170,-800.0,0.00042974,16]
[400341598,1767394244179,-800.0,0.00042974,16]
[400341599,1767394244188,-800.0,0.00042974,16]
[400341600,1767394244197,-800.0,0.00042974,16]
[400341601,1767394244206,-800.0,0.00042974,16]
[400341602,1767394244215,-800.0,0.00042974,16]
[400341603,1767394244224,-800.0,0.00042974,16]
[400341604,1767394244233,-800.0,0.00042974,16]
[400341605,1767394244242,-300.0,0.00042974,30]
[400341606,1767394244251,-3155.0,0.00042983,120]
[400341607,1767394244260,-150.0,0.00042984,30]
[400341608,1767394244270,-150.0,0.00042984,30]
[400341609,1767394244278,-150.0,0.00042984,30]
[400341610,1767394244287,-150.0,0.00042984,30]
[400341611,1767394244297,-200.0,0.00042987,120]
[400341612,1767394244305,-154.37160246,0.00042987,14]
[400341613,1767394244315,-199.6,0.00043,27]
[400341614,1767394244325,-151.85,0.00043,2]
[400341615,1767394244334,-150.0,0.00043,60]
[400341616,1767394244343,-253.0,0.00043,41]
[400341617,1767394244355,-979.0,0.00043,30]
[400341618,1767394244364,-306.0,0.00043,30]
[400341619,1767394244373,-643.47683394,0.00043,30]
[400341620,1767394244382,-643.47683394,0.00043,30]
[400341621,1767394244392,-201.0,0.00043,30]
[400341622,1767394244401,-1963.68201,0.00043,120]
[400341623,1767394244410,-1963.68201,0.00043,120]
[400341624,1767394244420,-1963.68201,0.00043,120]
[400341625,1767394244428,-1963.68201,0.00043,120]
[400341626,1767394244438,-1963.68201,0.00043,120]
[400341627,1767394244447,-2798.9716274,0.00043022,2]
[400341628,1767394244456,-1008.3298717,0.00043022,2]
[400341629,1767394244465,-3904.8025021,0.00043022,2]
[400341630,1767394244473,-197353.811811,0.00043022,2]
[400341631,1767394244482,-1356.5324586,0.00043022,2]
[400341632,1767394244491,-175.512054,0.00043022,120]
[400341633,1767394244500,-200.0,0.00043033,7]
[400341634,1767394244646,-151.0,0.00043038,120]
[400341635,1767394244656,-666.05,0.0004304,120]
[400341636,1767394244665,-5008.0,0.0004304,30]
[400341637,1767394244675,-500.0,0.00043041,60]
[400341638,1767394244684,-800.0,0.00043041,60]
[400341639,1767394244694,-150.0,0.00043041,30]
[400341640,1767394244703,-150.0,0.00043041,30]
[400341641,1767394244713,-500.0,0.00043041,120]
[400341642,1767394244722,-500.0,0.00043041,120]
[400341643,1767394244731,-500.0,0.00043041,120]
[400341644,1767394244740,-151.0,0.00043041,15]
[400341645,1767394244749,-151.0,0.00043041,15]
[400341646,1767394244759,-289.240299,0.00043041,15]
[400341647,1767394244768,-500.0,0.00043041,120]
[400341648,1767394244777,-500.0,0.00043041,120]
[400341649,1767394244787,-378.58724994,0.00043041,31]
[400341650,1767394244796,-911594.34775414,0.00043041,7]
[400341651,1767394244933,-1043.40595115,0.00042852,2]
[400341652,1767394244944,-1389.59404885,0.00042852,2]
[400341653,1767394244953,-1084.6982721,0.00043041,7]
[400341654,1767394244964,-5286.694357,0.00043041,7]
[400341655,1767394244975,-26843.62044897,0.00043041,7]
[400341656,1767394244991,-2011.75052409,0.00043041,7]
[400341657,1767394245002,-777.45991394,0.00043041,7]
[400341658,1767394245013,-1118.4173,0.00043041,7]
[400341678,1767394246261,-4693.40183751,0.00042941,15]
[400341679,1767394246271,-4267.14394741,0.00043041,7]
[400341680,1767394246320,-569.93088227,0.00043041,7]
[400341681,1767394246331,-2345.1357987,0.00043041,7]
[400341682,1767394246342,-639.81943298,0.00043041,7]
[400341683,1767394246383,-2351.50782489,0.00043041,7]
[400341684,1767394246396,-517.97784,0.00043041,7]
[400341685,1767394246410,-475.3447729,0.00043041,7]
[400341686,1767394246422,-3817.54959322,0.00043041,7]
[400341687,1767394246434,-2165.5560001,0.00043041,7]
[400341688,1767394246447,-1384.00984328,0.00043041,7]
[400341689,1767394246668,-975.43176676,0.00043041,7]
[400341719,1767394261082,500.0,0.00043041,120]
[400341720,1767394307164,-165.38,0.00021058,2]
[400341721,1767394307197,-908.03637177,0.00022998,2]
[400341722,1767394307229,-908.03637177,0.00022998,2]
[400341723,1767394307262,-908.03637177,0.00022998,2]
[400341724,1767394307294,-908.03637177,0.00022998,2]
[400341725,1767394307329,-908.03637177,0.00022998,2]
[400341726,1767394307363,-908.03637177,0.00022998,2]
[400341727,1767394307395,-908.03637177,0.00022998,2]
[400341728,1767394307427,-908.03637177,0.00022998,2]
[400341729,1767394307458,-908.03637177,0.00022998,2]
[400341730,1767394307489,-908.03637177,0.00022998,2]
[400341731,1767394307509,-165.38,0.00022998,2]
[400341732,1767394307520,-742.65637177,0.00022998,2]
[400341733,1767394307530,-165.38,0.00022998,2]
[400341734,1767394307542,-742.65637177,0.00022998,2]
[400341735,1767394307551,-165.38,0.00022998,2]
[400341736,1767394307563,-742.65637177,0.00022998,2]
[400341737,1767394307574,-165.38,0.00022998,2]
[400341738,1767394307585,-742.65637177,0.00022998,2]
[400341739,1767394307594,-165.38,0.00022998,2]
[400341740,1767394307610,-742.65637177,0.00022998,2]
[400341741,1767394307620,-165.38,0.00022998,2]
[400341742,1767394307631,-742.65637177,0.00022998,2]
[400341743,1767394307639,-165.38,0.00022998,2]
[400341744,1767394307651,-742.65637177,0.00022998,2]
[400341745,1767394307660,-165.38,0.00022998,2]
[400341746,1767394307672,-742.65637177,0.00022998,2]
[400341747,1767394307681,-165.38,0.00022998,2]
[400341748,1767394307692,-742.65637177,0.00022998,2]
[400341749,1767394307701,-165.38,0.00022998,2]
[400341750,1767394307713,-742.65637177,0.00022998,2]
[400341751,1767394307722,-165.38,0.00022998,2]
[400341752,1767394307734,-508.5125646,0.00022998,2]
[400341753,1767394323060,500.0,0.00016973,2]
[400341754,1767394326121,500.0,0.00016973,2]
[400341755,1767394326431,500.0,0.00016973,2]
[400341756,1767394326488,168.54044254,0.00016973,2]
[400341757,1767394326543,160.41604675,0.00016973,2]
[400341758,1767394326766,500.0,0.00016973,2]
[400341759,1767394328796,500.0,0.00016973,2]
[400341760,1767394330016,500.18172396,0.00016973,2]
[400341761,1767394330805,500.67181276,0.00016973,2]
[400341762,1767394332579,307.8064023,0.00016973,2]
[400341763,1767394333167,165.84571545,0.00016973,2]
[400341764,1767394340538,-234.14380717,0.00022998,2]
[400341765,1767394340570,-908.03637177,0.00022998,2]
[400341766,1767394340601,-908.03637177,0.00022998,2]
[400341767,1767394340633,-908.03637177,0.00022998,2]
[400341768,1767394340672,-500.0,0.00022998,2]
[400341769,1767394340692,-234.14380717,0.00022998,2]
[400341770,1767394340704,-265.85619283,0.00022998,2]
[400341771,1767394340713,-500.0,0.00022998,2]
[400341772,1767394340723,-142.18017894,0.00022998,2]
[400341773,1767394340735,-357.81982106,0.00022998,2]
[400341774,1767394340745,-500.0,0.00022998,2]
[400341775,1767394340755,-50.21655071,0.00022998,2]
[400341776,1767394340766,-106.27044337,0.00022998,2]
[400341777,1767394340775,-510.10548742,0.00022998,2]
[400341778,1767394340785,-291.66044098,0.00022999,2]
[400341779,1767394340796,-208.33955902,0.00022999,2]
[400341780,1767394340805,-196.80252033,0.00028677,2]
[400341781,1767394340815,-94.85792065,0.0003279,2]
[400341782,1767394340827,-57.01740543,0.0003279,2]
[400341783,1767394383121,500.0,0.00016973,2]
[400341784,1767394383150,500.0,0.00016973,2]
[400341785,1767394389308,500.0,0.00016973,2]
[400341786,1767394391664,165.11464537,0.00016973,2]
[400341787,1767394392878,283.07385017,0.00016973,2]
[400341788,1767394393572,500.0,0.00016973,2]
[400341789,1767394395206,503.17221117,0.00016973,2]
[400341790,1767394395494,551.71631931,0.00016973,2]
[400341791,1767394395524,483.85385125,0.00016973,2]
[400341792,1767394395963,500.0,0.00016973,2]
[400341793,1767394396095,500.0,0.00016973,2]
[400341794,1767394396141,500.0,0.00016973,2]
[400341795,1767394396969,163.98462435,0.00016973,2]
[400341796,1767394397177,45.63235462,0.00016973,2]
[400341797,1767394397199,123.26022616,0.00016973,2]
[400341798,1767394398405,160.46048647,0.00016973,2]
[400341799,1767394399938,500.0,0.00016973,2]
[400341800,1767394400560,500.0,0.00016973,2]
[400341801,1767394400613,500.0,0.00016973,2]
[400341802,1767394401950,378.15038662,0.00016973,2]
[400341803,1767394402254,500.0,0.00016973,2]
[400341804,1767394402283,506.42109494,0.00016973,2]
[400341805,1767394402613,161.89849109,0.00016973,2]
[400341806,1767394402784,500.0,0.00016973,2]
[400341807,1767394404023,500.0,0.00016973,2]
[400341808,1767394404290,500.0,0.00016973,2]
[400341809,1767394443413,500.0,0.00016973,2]
[400341810,1767394446435,510.3592116,0.00016973,2]
[400341811,1767394503417,500.0,0.00016973,2]
[400341812,1767394503452,500.0,0.00016973,2]
[400341813,1767394503482,500.0,0.00016973,2]
[400341814,1767394505579,500.0,0.00016973,2]
[400341815,1767394506599,500.0,0.00016973,2]
[400341816,1767394506723,500.0,0.00016973,2]
[400341817,1767394506894,500.0,0.00016973,2]
[400341818,1767394507342,500.0,0.00043042,120]